bitfinex-derivatives/quotes_BTCF0:USTF0_20240903
["timestamp","ask_amount","ask_price","bid_price","bid_amount"]
[1725322155146,0.0088,59110.0,59109.0,0.15925768]
[1725322155345,0.0088,59110.0,59109.0,0.37265341]
[1725322155641,0.0088,59110.0,59109.0,0.37265439]
[1725322156349,0.0088,59110.0,59109.0,0.2437502]
[1725322156533,0.0088,59110.0,59109.0,0.15925768]
[1725322159264,0.0088,59110.0,59109.0,0.22686823]
[1725322160045,0.0088,59110.0,59109.0,0.15925768]
[1725322160240,0.0088,59110.0,59109.0,0.22686823]
[1725322160452,0.0088,59110.0,59109.0,0.15925768]
[1725322161251,0.0088,59110.0,59109.0,0.22686823]
[1725322162157,0.0088,59110.0,59109.0,0.73438823]
[1725322164057,0.0088,59110.0,59109.0,0.22686823]
[1725322164556,0.0088,59110.0,59109.0,0.66677768]
[1725322165058,0.0088,59110.0,59109.0,0.06925768]
[1725322165351,0.0088,59110.0,59109.0,0.15925768]
[1725322165560,0.0088,59110.0,59109.0,0.22682606]
[1725322165753,0.0088,59110.0,59109.0,0.15925768]
[1725322165955,0.0088,59110.0,59109.0,0.22682612]
[1725322166348,0.0088,59110.0,59109.0,0.13682612]
[1725322166549,0.0088,59110.0,59109.0,0.22682612]
[1725322168959,0.0088,59110.0,59109.0,0.58762612]
[1725322172255,0.0088,59110.0,59109.0,0.52005768]
[1725322172856,0.0039,59119.0,59118.0,0.067664]
[1725322173064,0.00025368,59121.0,59118.0,0.157664]
[1725322173258,0.06791568,59121.0,59118.0,0.157664]
[1725322173956,0.024,59119.0,59118.0,0.159664]
[1725322174554,0.014,59119.0,59118.0,0.158664]
[1725322174754,0.014,59119.0,59118.0,0.159664]
[1725322175067,0.024,59119.0,59118.0,0.159664]
[1725322176262,0.01,59119.0,59118.0,0.20934125]
[1725322176559,0.01,59119.0,59118.0,0.21404348]
[1725322177266,0.021,59119.0,59118.0,0.21404348]
[1725322177462,0.021,59119.0,59118.0,0.16336623]
[1725322178463,0.021,59119.0,59118.0,0.21405156]
[1725322181064,0.021,59119.0,59118.0,0.16336623]
[1725322184159,0.0039,59126.0,59120.0,0.067662]
[1725322184365,0.0039,59129.0,59125.0,0.50146011]
[1725322184672,0.3608,59131.0,59130.0,0.15765]
[1725322186872,0.3608,59131.0,59130.0,0.15865]
[1725322187868,0.3608,59131.0,59130.0,0.15965]
[1725322191072,0.067649,59132.0,59130.0,0.52045]
[1725322192984,0.070649,59132.0,59130.0,0.52045]
[1725322193773,0.070649,59132.0,59130.0,0.15965]
[1725322195295,0.431449,59132.0,59130.0,0.15965]
[1725322197668,0.067649,59131.0,59130.0,0.002]
[1725322199575,0.067649,59131.0,59130.0,0.001]
[1725322199771,0.067649,59131.0,59130.0,0.002]
[1725322199772,0.070649,59131.0,59130.0,0.002]
[1725322204492,0.070649,59131.0,59130.0,0.0024]
[1725322209388,0.735658,59131.0,59130.0,0.0024]
[1725322209582,0.865658,59131.0,59130.0,0.0024]
[1725322209889,0.200649,59131.0,59130.0,0.0024]
[1725322210079,0.070649,59131.0,59130.0,0.0024]
[1725322213990,0.431449,59131.0,59130.0,0.0024]
[1725322218191,0.431449,59131.0,59130.0,0.0924]
[1725322218192,0.003,59131.0,59130.0,0.0924]
[1725322218488,0.003,59131.0,59130.0,0.16005]
[1725322219191,0.003,59131.0,59130.0,0.20825]
[1725322220093,0.003,59131.0,59130.0,0.25891011]
[1725322221281,0.003,59131.0,59130.0,0.20825]
[1725322222292,0.003,59131.0,59130.0,0.25891011]
[1725322222492,0.003,59131.0,59130.0,0.20825]
[1725322222895,0.003,59131.0,59130.0,0.27581629]
[1725322223789,0.003,59131.0,59130.0,1.38317629]
[1725322223991,0.00025368,59136.0,59135.0,0.067645]
[1725322224291,0.428427,59151.0,59142.0,0.067637]
[1725322224292,0.0039,59143.0,59142.0,0.067637]
[1725322224591,0.0039,59150.0,59147.0,0.06763]
[1725322224790,0.067626,59152.0,59149.0,0.0904]
[1725322224988,0.067627,59151.0,59149.0,0.0904]
[1725322226487,0.067628,59150.0,59149.0,0.0904]
[1725322226688,0.067628,59150.0,59149.0,0.0914]
[1725322227293,0.067628,59150.0,59149.0,0.0924]
[1725322232989,0.067628,59150.0,59149.0,0.0024]
[1725322235597,0.067628,59150.0,59149.0,0.0924]
[1725322248911,0.3608,59152.0,59149.0,0.160029]
[1725322249102,0.3608,59152.0,59151.0,0.0004]
[1725322250814,0.3608,59152.0,59151.0,0.0014]
[1725322251295,0.3608,59152.0,59151.0,0.069026]
[1725322252096,0.3608,59152.0,59151.0,0.070026]
[1725322256207,0.07152,59157.0,59151.0,0.070026]
[1725322256208,0.07152,59157.0,59153.0,0.067624]
[1725322256409,0.06762,59157.0,59156.0,0.0904]
[1725322256601,0.42842,59157.0,59156.0,0.0904]
[1725322258114,0.42842,59157.0,59156.0,0.0914]
[1725322259618,0.42842,59157.0,59156.0,0.0924]
[1725322260912,0.06762,59157.0,59156.0,0.0924]
[1725322261107,0.42842,59157.0,59156.0,0.0924]
[1725322266420,0.51842,59157.0,59156.0,0.0024]
[1725322266617,0.72372,59157.0,59156.0,0.0024]
[1725322270227,0.791341,59157.0,59156.0,0.0024]
[1725322271637,0.701341,59157.0,59156.0,0.0024]
[1725322271825,0.591341,59157.0,59156.0,0.0024]
[1725322272032,0.590011,59157.0,59156.0,0.0024]
[1725322275743,0.52239,59157.0,59156.0,0.0024]
[1725322278353,0.16159,59157.0,59156.0,0.0024]
[1725322278539,0.52239,59157.0,59156.0,0.0024]
[1725322281153,0.590011,59157.0,59156.0,0.0024]
[1725322281447,0.590011,59157.0,59149.0,0.0004]
[1725322281448,0.067628,59150.0,59149.0,0.0004]
[1725322281645,0.628828,59150.0,59149.0,0.0004]
[1725322282548,0.067633,59145.0,59144.0,0.00025368]
[1725322282750,0.428833,59145.0,59144.0,0.00025368]
[1725322283047,0.428833,59145.0,59144.0,0.09025368]
[1725322283253,0.427833,59145.0,59144.0,0.09025368]
[1725322283554,0.067033,59145.0,59144.0,0.09025368]
[1725322284055,0.067033,59145.0,59144.0,0.09125368]
[1725322284650,0.067033,59145.0,59144.0,0.09225368]
[1725322284851,0.07067433,59145.0,59144.0,0.09225368]
[1725322285653,0.07067433,59145.0,59144.0,0.09125368]
[1725322285849,0.43147433,59145.0,59144.0,0.09225368]
[1725322286450,0.43247433,59145.0,59144.0,0.09225368]
[1725322287152,0.43047433,59145.0,59144.0,0.09125368]
[1725322287357,0.43247433,59145.0,59144.0,0.09225368]
[1725322288758,0.07167433,59145.0,59144.0,0.09225368]
[1725322291555,0.0024,59145.0,59144.0,0.09125368]
[1725322291759,0.0024,59145.0,59144.0,0.09225368]
[1725322291955,0.0024,59145.0,59144.0,0.15988768]
[1725322298263,0.00107,59145.0,59144.0,0.15988768]
[1725322320173,0.00107,59145.0,59144.0,0.21050363]
[1725322324501,0.067372,59146.0,59144.0,0.21050363]
[1725322324904,0.067372,59146.0,59145.0,0.0004]
[1725322326603,0.428428,59150.0,59145.0,0.0014]
[1725322326803,0.45730001,59157.0,59145.0,0.0014]
[1725322326804,0.0039,59155.0,59149.0,0.3612]
[1725322327003,0.0046,59165.0,59158.0,0.067618]
[1725322327004,0.0039,59159.0,59158.0,0.067618]
[1725322327208,0.00360776,59165.0,59158.0,0.0904]
[1725322327506,0.3608,59166.0,59164.0,0.09]
[1725322327900,0.3608,59166.0,59165.0,0.0004]
[1725322328900,0.36442201,59166.0,59165.0,0.0004]
[1725322329103,0.36442201,59166.0,59165.0,0.0014]
[1725322330707,0.36442201,59166.0,59165.0,0.0024]
[1725322332009,0.36442201,59166.0,59165.0,0.0014]
[1725322332208,0.3608,59166.0,59165.0,0.0024]
[1725322332405,0.3608,59166.0,59165.0,0.07001]
[1725322333707,0.23487654,59177.0,59165.0,0.07001]
[1725322333708,0.3608,59173.0,59168.0,0.067607]
[1725322334023,0.067603,59172.0,59171.0,0.09]
[1725322334223,0.067603,59172.0,59171.0,0.0904]
[1725322335103,0.00860108,59175.0,59171.0,0.0904]
[1725322335319,0.23861449,59177.0,59174.0,0.0004]
[1725322335513,0.31487092,59177.0,59176.0,0.0004]
[1725322335714,0.067599,59175.0,59174.0,0.0004]
[1725322335915,0.067999,59175.0,59174.0,0.0004]
[1725322336616,0.066999,59175.0,59174.0,0.0004]
[1725322337225,0.066999,59175.0,59174.0,0.0014]
[1725322338116,0.066999,59175.0,59174.0,0.0024]
[1725322339421,0.066999,59175.0,59174.0,0.0924]
[1725322339813,0.0004,59175.0,59174.0,0.0924]
[1725322342119,0.0004,59175.0,59174.0,0.16]
[1725322346514,0.0004,59175.0,59174.0,0.0024]
[1725322346821,0.3612,59175.0,59174.0,0.0014]
[1725322347124,0.3612,59175.0,59174.0,0.0024]
[1725322347623,0.3612,59175.0,59174.0,0.0014]
[1725322347924,0.428799,59175.0,59174.0,0.0014]
[1725322348127,0.428799,59175.0,59174.0,0.0024]
[1725322350720,0.427469,59175.0,59174.0,0.0924]
[1725322352525,0.066669,59175.0,59174.0,0.0914]
[1725322352727,0.066669,59175.0,59174.0,0.0924]
[1725322353624,0.066669,59175.0,59174.0,0.0914]
[1725322353928,0.066669,59175.0,59174.0,0.0924]
[1725322356833,0.156669,59175.0,59174.0,0.0024]
[1725322358527,0.066669,59175.0,59174.0,0.0024]
[1725322360827,0.427469,59175.0,59174.0,0.0024]
[1725322376836,0.426139,59175.0,59174.0,0.0024]
[1725322378136,0.065339,59175.0,59174.0,0.0024]
[1725322387156,0.114339,59175.0,59174.0,0.0024]
[1725322387642,0.475139,59175.0,59174.0,0.0024]
[1725322389157,0.475139,59175.0,59166.0,0.05061595]
[1725322389158,0.067607,59168.0,59166.0,0.05061595]
[1725322389348,0.3612,59167.0,59164.0,0.3237]
[1725322389549,0.06801,59165.0,59164.0,0.3237]
[1725322389763,0.06761,59165.0,59164.0,0.3237]
[1725322390456,0.13422,59165.0,59164.0,0.3237]
[1725322390846,0.067616,59160.0,59159.0,0.00025368]
[1725322391046,0.427816,59160.0,59159.0,0.09025368]
[1725322392062,0.0004,59160.0,59159.0,0.09025368]
[1725322392257,0.0004,59160.0,59159.0,1.26499068]
[1725322392457,0.0004,59160.0,59159.0,1.62579068]
[1725322392758,0.0004,59160.0,59159.0,1.69332394]
[1725322392958,0.0024,59160.0,59159.0,1.69332394]
[1725322393159,0.0034,59160.0,59159.0,1.69332394]
[1725322393763,0.0034,59160.0,59159.0,1.62579068]
[1725322394353,0.0034,59160.0,59159.0,0.66499068]
[1725322396561,0.0034,59160.0,59159.0,0.71562913]
[1725322396763,0.0034,59160.0,59159.0,0.66499068]
[1725322397057,0.0034,59160.0,59159.0,0.15787068]
[1725322399959,0.0034,59160.0,59159.0,0.2085081]
[1725322400152,0.0034,59160.0,59159.0,0.15787068]
[1725322401764,0.0034,59160.0,59159.0,0.51867068]
[1725322402465,0.0034,59160.0,59159.0,1.02579068]
[1725322402970,0.00304,59160.0,59159.0,1.02579068]
[1725322403167,0.00304,59160.0,59159.0,1.69332394]
[1725322403353,0.00304,59160.0,59159.0,1.59332394]
[1725322403957,0.00304,59160.0,59159.0,1.66094094]
[1725322404156,0.003,59160.0,59159.0,1.59340768]
[1725322404967,0.003,59160.0,59159.0,1.66102468]
[1725322405176,0.003,59160.0,59159.0,1.87429552]
[1725322405469,0.00025368,59165.0,59164.0,0.067612]
[1725322405665,0.00025368,59165.0,59164.0,0.58632002]
[1725322406661,0.00925368,59165.0,59164.0,0.519812]
[1725322406862,0.00925368,59165.0,59164.0,0.520812]
[1725322407164,0.00925368,59165.0,59164.0,0.430812]
[1725322407365,0.00925368,59165.0,59164.0,0.520812]
[1725322407963,0.00925368,59165.0,59164.0,0.57144653]
[1725322408357,0.07686368,59165.0,59164.0,0.520812]
[1725322408562,0.07686368,59165.0,59164.0,0.3632]
[1725322408865,0.07686368,59165.0,59164.0,0.0024]
[1725322410661,0.16686368,59165.0,59164.0,0.0024]
[1725322410870,0.07686368,59165.0,59164.0,0.0024]
[1725322411669,0.0804621,59165.0,59164.0,0.0024]
[1725322417571,0.2004621,59165.0,59164.0,0.0024]
[1725322420181,0.0804621,59165.0,59164.0,0.0024]
[1725322427084,0.07686368,59165.0,59164.0,0.0024]
[1725322428189,0.07686368,59165.0,59164.0,0.070012]
[1725322428377,0.00925368,59165.0,59164.0,0.070012]
[1725322428681,0.00925368,59165.0,59164.0,0.07369699]
[1725322432084,0.00925368,59165.0,59164.0,0.12433152]
[1725322435188,0.00925368,59165.0,59164.0,0.07369699]
[1725322437190,0.00925368,59165.0,59164.0,1.45838899]
[1725322439199,0.00925368,59165.0,59164.0,1.27077699]
[1725322441491,0.00925368,59165.0,59164.0,1.63157699]
[1725322442190,0.00925368,59165.0,59164.0,1.69904472]
[1725322443190,0.00925368,59165.0,59164.0,1.63157699]
[1725322443388,0.00925368,59165.0,59164.0,1.69903149]
[1725322444298,0.00025368,59165.0,59164.0,1.69803149]
[1725322444488,0.00325368,59165.0,59164.0,1.69703149]
[1725322445596,0.00325368,59165.0,59164.0,1.62957699]
[1725322446396,0.00325368,59165.0,59164.0,1.69703149]
[1725322446599,0.00325368,59165.0,59164.0,1.09703149]
[1725322448091,0.00325368,59165.0,59164.0,1.02957699]
[1725322448598,0.00325368,59165.0,59164.0,0.52249699]
[1725322449595,0.16086368,59165.0,59164.0,0.00408499]
[1725322449797,0.52166368,59165.0,59164.0,0.0004]
[1725322452110,0.43166368,59165.0,59164.0,0.0004]
[1725322456504,0.07086368,59165.0,59164.0,0.0004]
[1725322456809,0.79246368,59165.0,59164.0,0.0004]
[1725322457406,0.86007368,59165.0,59164.0,0.0004]
[1725322459007,0.49927368,59165.0,59164.0,0.0004]
[1725322464012,0.13847368,59165.0,59164.0,0.0004]
[1725322471112,0.49927368,59165.0,59164.0,0.0004]
[1725322471522,0.64397368,59165.0,59164.0,0.0004]
[1725322472025,0.73397368,59165.0,59164.0,0.0004]
[1725322474211,1.09477368,59165.0,59164.0,0.0004]
[1725322476513,0.37317368,59165.0,59164.0,0.0004]
[1725322476720,1.09477368,59165.0,59164.0,0.0004]
[1725322477030,0.37317368,59165.0,59164.0,0.0004]
[1725322477224,1.09477368,59165.0,59164.0,0.0004]
[1725322478427,0.73397368,59165.0,59164.0,0.0004]
[1725322483536,0.73397368,59165.0,59154.0,0.00025368]
[1725322483537,0.067621,59156.0,59154.0,0.00025368]
[1725322483838,0.225644,59155.0,59154.0,0.00025368]
[1725322485630,0.225644,59155.0,59154.0,0.00525368]
[1725322486337,0.225644,59155.0,59154.0,0.00025368]
[1725322486536,0.225644,59155.0,59154.0,0.00225368]
[1725322488335,0.586444,59155.0,59154.0,0.00225368]
[1725322491242,0.59011503,59155.0,59154.0,0.00225368]
[1725322493653,0.69011503,59155.0,59154.0,0.00225368]
[1725322494347,0.60011503,59155.0,59154.0,0.00225368]
[1725322494562,0.69011503,59155.0,59154.0,0.00225368]
[1725322500551,0.53249303,59155.0,59154.0,0.00225368]
[1725322505561,0.17169303,59155.0,59154.0,0.00225368]
[1725322505762,0.53249303,59155.0,59154.0,0.00225368]
[1725322506654,0.46487103,59155.0,59154.0,0.00225368]
[1725322506854,0.36487103,59155.0,59154.0,0.00225368]
[1725322507566,0.36487103,59155.0,59154.0,0.06987668]
[1725322507861,0.43249303,59155.0,59154.0,0.00225368]
[1725322510459,0.56249303,59155.0,59154.0,0.00225368]
[1725322511450,0.56249303,59155.0,59154.0,0.00625368]
[1725322514667,0.63011503,59155.0,59154.0,0.00625368]
[1725322519062,0.72011503,59155.0,59154.0,0.00625368]
[1725322520166,0.72011503,59155.0,59154.0,0.00525368]
[1725322520963,0.72011503,59155.0,59154.0,0.00425368]
[1725322524671,0.35931503,59155.0,59154.0,0.00425368]
[1725322526361,0.72011503,59155.0,59154.0,0.00425368]
[1725322529278,1.08091503,59155.0,59154.0,0.00425368]
[1725322535274,0.35931503,59155.0,59154.0,0.00425368]
[1725322535481,1.08091503,59155.0,59154.0,0.00425368]
[1725322536075,0.35931503,59155.0,59154.0,0.00425368]
[1725322536283,1.01329303,59155.0,59154.0,0.00425368]
[1725322537475,0.88329303,59155.0,59154.0,0.00425368]
[1725322538678,0.72567103,59155.0,59154.0,0.07187668]
[1725322538882,0.72567103,59155.0,59154.0,0.00425368]
[1725322539096,0.72567103,59155.0,59154.0,0.04945368]
[1725322539584,0.00407103,59155.0,59154.0,0.04945368]
[1725322540387,0.0039,59162.0,59157.0,0.067619]
[1725322540593,0.22,59162.0,59161.0,0.0004]
[1725322540793,0.22853209,59162.0,59161.0,0.0004]
[1725322541995,0.23227166,59162.0,59161.0,0.0004]
[1725322542186,0.23727166,59162.0,59161.0,0.0004]
[1725322543491,0.59807166,59162.0,59161.0,0.0004]
[1725322544481,0.60207166,59162.0,59161.0,0.0014]
[1725322551818,0.51207166,59162.0,59161.0,0.0014]
[1725322552013,0.60207166,59162.0,59161.0,0.0014]
[1725322553914,0.51207166,59162.0,59161.0,0.0014]
[1725322554221,0.60207166,59162.0,59161.0,0.0014]
[1725322557409,0.59353957,59162.0,59161.0,0.0014]
[1725322558218,0.60215052,59162.0,59161.0,0.0014]
[1725322560721,0.66976452,59162.0,59161.0,0.0014]
[1725322574630,0.57976452,59162.0,59161.0,0.0014]
[1725322576249,0.64737852,59162.0,59161.0,0.0014]
[1725322579652,0.28657852,59162.0,59161.0,0.0014]
[1725322579843,1.00817852,59162.0,59161.0,0.0014]
[1725322584050,1.00817852,59162.0,59154.0,0.00025368]
[1725322584051,0.067622,59155.0,59154.0,0.00025368]
[1725322584351,0.628822,59155.0,59154.0,0.00025368]
[1725322584558,0.696444,59155.0,59144.0,0.10407585]
[1725322584847,0.067637,59142.0,59141.0,0.00626]
[1725322585044,0.158037,59142.0,59141.0,0.00236]
[1725322585943,0.157037,59142.0,59141.0,0.00236]
[1725322586646,0.169037,59142.0,59141.0,0.00336]
[1725322587352,0.168037,59142.0,59141.0,0.00336]
[1725322587853,0.168037,59142.0,59141.0,0.00436]
[1725322587854,0.179037,59142.0,59141.0,0.00436]
[1725322589450,0.0234,59142.0,59141.0,0.09436]
[1725322589644,0.1134,59142.0,59141.0,0.00436]
[1725322592862,0.0234,59142.0,59141.0,0.00436]
[1725322593156,0.0234,59142.0,59141.0,0.09436]
[1725322593751,0.0234,59142.0,59141.0,0.161998]
[1725322594254,0.0234,59142.0,59141.0,1.269238]
[1725322594448,0.0234,59142.0,59141.0,1.630038]
[1725322598856,0.0234,59142.0,59141.0,1.63374236]
[1725322599055,0.00025368,59147.0,59141.0,1.56610436]
[1725322599254,0.00025368,59147.0,59146.0,0.518432]
[1725322599653,0.00025368,59147.0,59146.0,1.625632]
[1725322600361,0.01325368,59147.0,59146.0,1.625632]
[1725322600748,0.01325368,59147.0,59146.0,1.693264]
[1725322600951,0.0039,59154.0,59146.0,1.625632]
[1725322601156,0.067616,59160.0,59153.0,0.4508]
[1725322601157,0.0039,59157.0,59153.0,0.4508]
[1725322601353,0.067616,59160.0,59156.0,0.15762]
[1725322601554,0.067616,59160.0,59157.0,0.0472]
[1725322602250,0.067616,59160.0,59158.0,0.0492]
[1725322603449,0.067616,59160.0,59158.0,0.0502]
[1725322604756,0.067616,59160.0,59158.0,0.0512]
[1725322605657,0.067616,59160.0,59159.0,0.3608]
[1725322606264,0.067616,59160.0,59158.0,0.0512]
[1725322606463,0.0904,59159.0,59158.0,0.0512]
[1725322606665,0.0904,59159.0,59158.0,0.0502]
[1725322607256,0.0904,59159.0,59158.0,0.0492]
[1725322607461,0.00861095,59162.0,59158.0,0.116818]
[1725322607462,0.09,59161.0,59158.0,0.116818]
[1725322608061,0.09,59161.0,59158.0,0.117818]
[1725322608270,0.09831802,59161.0,59158.0,0.117818]
[1725322608459,0.09831802,59161.0,59158.0,0.118818]
[1725322608863,0.09831802,59161.0,59158.0,0.117818]
[1725322609573,0.21831802,59161.0,59158.0,0.117818]
[1725322610060,0.21831802,59161.0,59159.0,0.067617]
[1725322611464,0.21831802,59161.0,59159.0,0.068617]
[1725322611666,0.135232,59160.0,59159.0,0.002]
[1725322611869,0.394132,59160.0,59159.0,0.002]
[1725322612365,0.326516,59160.0,59159.0,0.002]
[1725322612674,1.433636,59160.0,59159.0,0.002]
[1725322613371,1.501252,59160.0,59159.0,0.002]
[1725322614559,1.501252,59160.0,59159.0,0.001]
[1725322614760,1.501252,59160.0,59159.0,0.002]
[1725322615671,1.501252,59160.0,59159.0,0.003]
[1725322617066,0.901252,59160.0,59159.0,0.003]
[1725322617280,1.501252,59160.0,59159.0,0.003]
[1725322618465,0.901252,59160.0,59159.0,0.003]
[1725322618870,1.622852,59160.0,59159.0,0.003]
[1725322619073,1.115732,59160.0,59159.0,0.003]
[1725322620464,1.115732,59160.0,59143.0,0.00316]
[1725322620663,1.115732,59160.0,59146.0,0.0039]
[1725322620664,0.586846,59154.0,59146.0,0.0039]
[1725322620867,0.586846,59154.0,59143.0,0.00316]
[1725322620868,0.067634,59144.0,59143.0,0.00706]
[1725322621172,0.157634,59144.0,59143.0,0.00316]
[1725322621776,0.155634,59144.0,59143.0,0.00316]
[1725322622478,0.516434,59144.0,59143.0,0.00316]
[1725322624075,0.516434,59144.0,59143.0,0.00416]
[1725322624781,0.518434,59144.0,59143.0,0.00516]
[1725322625280,0.428434,59144.0,59143.0,0.00516]
[1725322627484,0.067634,59144.0,59143.0,0.00516]
[1725322628576,0.07135339,59144.0,59143.0,0.00516]
[1725322630073,0.43215339,59144.0,59143.0,0.00516]
[1725322631074,0.43215339,59144.0,59143.0,0.00649]
[1725322632475,0.56651939,59144.0,59138.0,0.00025368]
[1725322632676,0.4508,59139.0,59138.0,0.00025368]
[1725322632887,0.5608,59139.0,59138.0,0.00025368]
[1725322633277,0.69608,59139.0,59138.0,0.00025368]
[1725322634279,0.69808,59139.0,59138.0,0.00025368]
[1725322637675,0.60808,59139.0,59138.0,0.00025368]
[1725322637886,0.69808,59139.0,59138.0,0.00025368]
[1725322639981,1.05968,59139.0,59138.0,0.00025368]
[1725322649292,0.69888,59139.0,59138.0,0.00025368]
[1725322656497,0.63124,59139.0,59138.0,0.00025368]
[1725322656689,0.99204,59139.0,59138.0,0.00025368]
[1725322670113,0.067652,59129.0,59128.0,0.0039]
[1725322670309,0.067653,59128.0,59124.0,0.05056743]
[1725322670505,0.067653,59128.0,59120.0,0.45678]
[1725322670506,0.0908,59125.0,59122.0,0.05056743]
[1725322670709,0.0908,59123.0,59122.0,0.05056743]
[1725322670914,0.09,59123.0,59122.0,0.05056743]
[1725322671516,0.0008,59125.0,59121.0,0.05056743]
[1725322671716,0.0908,59122.0,59121.0,0.05056743]
[1725322672418,0.51926,59122.0,59120.0,0.05068]
[1725322672619,0.51926,59122.0,59120.0,0.0498]
[1725322672620,0.0008,59121.0,59120.0,0.0498]
[1725322672819,0.1008,59121.0,59120.0,0.0498]
[1725322673224,0.159461,59121.0,59120.0,0.0498]
[1725322673413,0.147461,59121.0,59120.0,0.0498]
[1725322673612,0.147461,59121.0,59120.0,0.0506]
[1725322674013,0.147461,59121.0,59120.0,0.0586]
[1725322674520,0.147461,59121.0,59120.0,0.0188]
[1725322674521,0.216122,59121.0,59120.0,0.0188]
[1725322674725,0.360222,59121.0,59120.0,0.0108]
[1725322674916,0.360222,59121.0,59111.0,0.0039]
[1725322674917,0.067662,59120.0,59111.0,0.0039]
[1725322675116,0.067662,59120.0,59105.0,0.0935]
[1725322675117,0.067673,59111.0,59105.0,0.0974]
[1725322675317,0.067673,59111.0,59105.0,0.0935]
[1725322675318,0.09,59106.0,59105.0,0.0935]
[1725322675513,0.09,59106.0,59102.0,0.10066743]
[1725322675723,0.09,59106.0,59104.0,0.0478]
[1725322676432,0.066679,59105.0,59104.0,0.0478]
[1725322676618,0.066679,59105.0,59104.0,0.0278]
[1725322677924,0.07107865,59105.0,59104.0,0.0278]
[1725322678218,0.07307865,59105.0,59099.0,0.00025368]
[1725322678522,0.429285,59100.0,59099.0,0.00025368]
[1725322678828,0.519285,59100.0,59099.0,0.00025368]
[1725322679213,0.429285,59100.0,59099.0,0.00025368]
[1725322679413,0.519285,59100.0,59099.0,0.00025368]
[1725322679618,0.429285,59100.0,59099.0,0.00325368]
[1725322679812,0.519285,59100.0,59099.0,0.00325368]
[1725322680226,0.429285,59100.0,59099.0,0.00325368]
[1725322680437,0.519285,59100.0,59099.0,0.00325368]
[1725322680732,0.429285,59100.0,59099.0,0.00325368]
[1725322680926,0.439285,59100.0,59099.0,0.00125368]
[1725322681226,0.529285,59100.0,59099.0,0.00125368]
[1725322681421,0.4616,59100.0,59099.0,0.00125368]
[1725322682623,0.3716,59100.0,59099.0,0.00125368]
[1725322683825,0.3716,59100.0,59099.0,0.15893968]
[1725322684021,0.0108,59100.0,59099.0,1.26653968]
[1725322684747,0.0039,59107.0,59106.0,0.067678]
[1725322685026,0.00025368,59111.0,59110.0,0.067673]
[1725322686829,0.00925368,59111.0,59110.0,0.068673]
[1725322688831,0.00925368,59111.0,59110.0,1.176193]
[1725322689022,0.00925368,59111.0,59110.0,1.266193]
[1725322690134,0.00925368,59111.0,59110.0,1.626993]
[1725322692132,0.00925368,59111.0,59110.0,1.266193]
[1725322694837,0.00925368,59111.0,59110.0,1.626993]
[1725322695136,0.00925368,59111.0,59110.0,1.266193]
[1725322699944,0.00925368,59111.0,59110.0,0.158673]
[1725322710843,0.00925368,59111.0,59110.0,0.519473]
[1725322711046,0.0039,59118.0,59117.0,0.067665]
[1725322711257,0.067658,59124.0,59116.0,0.09]
[1725322711552,0.067658,59124.0,59120.0,0.09]
[1725322711746,0.07131753,59124.0,59120.0,0.09]
[1725322712053,0.067659,59123.0,59120.0,0.09]
[1725322712251,0.06766,59122.0,59119.0,0.067662]
[1725322712447,0.0008,59120.0,59119.0,0.067662]
[1725322713153,0.06766,59122.0,59120.0,0.0002]
[1725322714742,0.06766,59122.0,59119.0,0.067662]
[1725322714946,0.06766,59122.0,59119.0,0.068662]
[1725322715150,0.06766,59122.0,59121.0,0.3608]
[1725322715352,0.22056982,59127.0,59121.0,0.3608]
[1725322715353,0.12144981,59127.0,59121.0,0.3608]
[1725322715653,0.00025368,59128.0,59126.0,0.0904]
[1725322715955,0.00025368,59128.0,59127.0,0.068054]
[1725322716153,0.00025368,59128.0,59127.0,0.428854]
[1725322716452,0.0039,59134.0,59133.0,0.067647]
[1725322716645,0.3608,59140.0,59133.0,0.5712]
[1725322716846,0.3608,59140.0,59138.0,0.067641]
[1725322716847,0.09,59139.0,59138.0,0.067641]
[1725322717050,0.09,59139.0,59133.0,0.23869676]
[1725322717352,0.157641,59139.0,59133.0,0.188046]
[1725322719859,0.157641,59139.0,59134.0,0.067645]
[1725322721960,0.157641,59139.0,59134.0,0.157645]
[1725322722962,0.157641,59139.0,59135.0,0.067644]
[1725322724855,0.00367377,59141.0,59137.0,0.09]
[1725322725056,0.00025368,59142.0,59140.0,0.0004]
[1725322725262,0.00025368,59142.0,59141.0,0.0004]
[1725322725456,0.00025368,59142.0,59140.0,0.0004]
[1725322725649,0.0004,59141.0,59140.0,0.0004]
[1725322725850,0.0004,59141.0,59140.0,0.068038]
[1725322726262,0.0004,59141.0,59140.0,1.175318]
[1725322726757,0.0004,59141.0,59140.0,1.265318]
[1725322727148,0.0004,59141.0,59140.0,1.385318]
[1725322728262,0.0004,59141.0,59140.0,1.38896586]
[1725322728663,0.0004,59141.0,59140.0,1.38996586]
[1725322729956,0.0004,59141.0,59140.0,0.88268586]
[1725322730260,0.0004,59141.0,59140.0,1.38996586]
[1725322735063,0.0004,59141.0,59140.0,1.39129586]
[1725322735460,0.00025368,59142.0,59141.0,0.067638]
[1725322735762,0.00025368,59142.0,59141.0,0.575318]
[1725322735957,0.00025368,59142.0,59141.0,1.175318]
[1725322736164,0.00025368,59142.0,59141.0,1.656118]
[1725322736554,0.00025368,59142.0,59141.0,1.723756]
[1725322737661,0.00025368,59142.0,59141.0,1.724756]
[1725322738262,0.00025368,59142.0,59141.0,1.657118]
[1725322739364,0.00025368,59142.0,59141.0,1.057118]
[1725322740763,0.00025368,59142.0,59141.0,1.657118]
[1725322741958,0.00025368,59142.0,59141.0,1.057118]
[1725322742461,0.00025368,59142.0,59141.0,0.549838]
[1725322743362,0.00025368,59142.0,59141.0,0.60048876]
[1725322743861,0.00025368,59142.0,59141.0,0.549838]
[1725322744266,0.00025368,59142.0,59141.0,0.60048876]
[1725322744476,0.00025368,59142.0,59141.0,0.549838]